bitfinex/quotes_SOLUSD_20250626
["timestamp","ask_amount","ask_price","bid_price","bid_amount"]
[1750960680088,1.5656,141.75,141.62,6.14]
[1750960680318,18.79181043,141.74,141.62,35.0]
[1750960680493,18.79181043,141.74,141.64,6.81082057]
[1750960680691,0.14216157,141.72,141.66,6.81082057]
[1750960680909,6.81082057,141.7,141.65,35.75082057]
[1750960681128,1.71561478,141.75,141.65,28.94]
[1750960681430,6.81082057,141.71,141.67,18.64964886]
[1750960681589,8.77031352,141.75,141.66,6.81082057]
[1750960681590,6.81082057,141.69,141.68,28.98]
[1750960681790,6.81082057,141.69,141.67,18.64964886]
[1750960681989,18.77029536,141.75,141.69,18.64964886]
[1750960682191,1.587,141.73,141.64,0.70601524]
[1750960682409,1.587,141.73,141.6,7.7991]
[1750960682410,6.81082057,141.65,141.6,15.31613525]
[1750960682622,6.81082057,141.63,141.61,29.04]
[1750960682999,6.81082057,141.62,141.56,1.5664]
[1750960683214,6.81082057,141.61,141.57,29.06]
[1750960683420,6.81082057,141.62,141.57,35.87082057]
[1750960683620,6.81082057,141.61,141.58,18.64964886]
[1750960684098,6.81082057,141.61,141.57,29.06]
[1750960684301,10.28106912,141.6,141.58,18.64964886]
[1750960684518,10.28106912,141.61,141.58,18.64964886]
[1750960684705,6.3786,141.69,141.6,10.28106912]
[1750960684899,10.28106912,141.67,141.62,28.93071798]
[1750960685095,10.28106912,141.67,141.63,10.28106912]
[1750960685312,0.14216157,141.72,141.62,18.64964886]
[1750960685515,10.28106912,141.66,141.62,18.64964886]
[1750960685916,10.28106912,141.64,141.61,29.08]
[1750960686733,18.87479308,141.72,141.62,28.93071798]
[1750960686734,10.28106912,141.66,141.62,28.93071798]
[1750960687021,28.87479308,141.72,141.62,18.64964886]
[1750960687022,10.28106912,141.65,141.62,18.64964886]
[1750960687401,10.28106912,141.66,141.62,28.93071798]
[1750960687603,0.08298265,141.72,141.65,18.64964886]
[1750960687810,10.28106912,141.68,141.65,18.64964886]
[1750960688020,0.08298265,141.72,141.67,10.28106912]
[1750960688219,10.28106912,141.71,141.67,39.46106912]
[1750960688429,10.36405177,141.72,141.67,39.46106912]
[1750960688628,10.28106912,141.71,141.67,39.46106912]
[1750960689623,10.28106912,141.71,141.68,18.64964886]
[1750960689833,10.36405177,141.72,141.68,18.64964886]
[1750960690529,10.36405177,141.72,141.68,28.93071798]
[1750960690731,0.08298265,141.72,141.68,28.93071798]
[1750960691106,10.36405177,141.72,141.68,28.93071798]
[1750960691934,0.08298265,141.72,141.69,10.28106912]
[1750960692233,0.08298265,141.72,141.7,18.64964886]
[1750960693024,0.08298265,141.72,141.68,19.35546478]
[1750960693320,0.08298265,141.72,141.7,39.46106912]
[1750960694005,0.08298265,141.72,141.7,29.18]
[1750960695109,10.36405177,141.72,141.7,29.18]
[1750960695432,10.36405177,141.72,141.69,18.64964886]
[1750960695808,0.08298265,141.72,141.69,108.04964886]
[1750960696928,0.08298265,141.72,141.69,118.33071798]
[1750960697109,0.08298265,141.72,141.7,10.28106912]
[1750960697831,0.08298265,141.72,141.69,118.33071798]
[1750960698410,0.08298265,141.72,141.69,108.04964886]
[1750960698610,10.36405177,141.72,141.69,108.04964886]
[1750960699021,10.36405177,141.72,141.69,89.4]
[1750960699911,0.08298265,141.72,141.69,89.4]
[1750960700125,10.36405177,141.72,141.69,89.4]
[1750960700334,10.28106912,141.71,141.69,89.4]
[1750960701032,10.28106912,141.71,141.68,29.2]
[1750960701211,0.08298265,141.72,141.66,35.38]
[1750960701212,10.28106912,141.69,141.66,35.38]
[1750960701408,10.28106912,141.68,141.66,35.38]
[1750960701637,10.28106912,141.67,141.66,6.18]
[1750960701866,10.28106912,141.67,141.63,29.2]
[1750960702029,0.14216157,141.7,141.6,7.8045]
[1750960702217,10.28106912,141.67,141.63,10.28106912]
[1750960702636,7.28150022,141.72,141.63,10.28106912]
[1750960702938,10.28106912,141.67,141.63,39.48106912]
[1750960703336,10.28106912,141.67,141.63,29.2]
[1750960705212,17.86556194,141.72,141.59,6.18]
[1750960705213,10.28106912,141.64,141.59,6.18]
[1750960705520,10.28106912,141.61,141.57,118.6]
[1750960705843,7.5085,141.67,141.58,10.28106912]
[1750960706140,10.28106912,141.62,141.58,10.28106912]
[1750960706325,10.28106912,141.61,141.57,18.64964886]
[1750960706520,10.28106912,141.6,141.57,47.90964886]
[1750960707153,10.28106912,141.61,141.57,18.64964886]
[1750960707340,7.05997458,141.65,141.56,18.64964886]
[1750960707539,10.28106912,141.59,141.56,18.64964886]
[1750960708638,10.28106912,141.61,141.57,10.28106912]
[1750960708841,15.42307231,141.66,141.58,10.28106912]
[1750960708842,10.28106912,141.62,141.58,10.28106912]
[1750960709140,10.28106912,141.65,141.59,18.64964886]
[1750960709342,10.28106912,141.64,141.59,18.64964886]
[1750960709547,10.28106912,141.65,141.6,10.28106912]
[1750960709725,10.28106912,141.65,141.61,10.28106912]
[1750960710043,10.28106912,141.66,141.61,10.28106912]
[1750960710430,10.28106912,141.65,141.6,29.32]
[1750960710750,10.28106912,141.66,141.61,10.28106912]
[1750960711331,10.28106912,141.66,141.61,18.64964886]
[1750960711644,10.28106912,141.65,141.61,28.93071798]
[1750960712342,7.34669857,141.7,141.65,18.64964886]
[1750960712343,2.18819999,141.7,141.65,18.64964886]
[1750960712557,12.46926911,141.7,141.65,47.94964886]
[1750960712720,2.18819999,141.7,141.65,47.94964886]
[1750960712925,10.28106912,141.68,141.65,47.94964886]
[1750960713225,2.18819999,141.7,141.63,58.27071798]
[1750960713428,10.28106912,141.67,141.63,58.27071798]
[1750960714561,9.24540912,141.7,141.63,58.27071798]
[1750960714859,10.28106912,141.67,141.63,58.27071798]
[1750960715646,10.28106912,141.68,141.63,58.27071798]
[1750960715948,10.28106912,141.68,141.64,10.28106912]
[1750960718128,2.18819999,141.7,141.64,10.28106912]
[1750960718448,10.28106912,141.69,141.64,10.28106912]
[1750960723354,10.28106912,141.69,141.63,58.27071798]
[1750960723970,7.35331764,141.7,141.63,58.27071798]
[1750960724254,10.28106912,141.69,141.63,58.27071798]
[1750960724684,17.63438676,141.7,141.63,58.27071798]
[1750960724826,12.46926911,141.7,141.63,58.27071798]
[1750960725259,10.28106912,141.69,141.63,58.27071798]
[1750960726176,10.28106912,141.69,141.65,18.64964886]
[1750960727426,2.18819999,141.7,141.66,10.28106912]
[1750960727627,5.16511765,141.73,141.67,18.64964886]
[1750960727628,10.28106912,141.71,141.67,18.64964886]
[1750960727856,5.16511765,141.73,141.67,18.64964886]
[1750960728035,5.16511765,141.74,141.68,10.28106912]
[1750960728354,10.28106912,141.73,141.68,10.28106912]
[1750960728847,10.28106912,141.73,141.67,18.64964886]
[1750960729040,10.28106912,141.73,141.68,10.28106912]
[1750960730257,10.28106912,141.72,141.68,10.28106912]
[1750960732454,10.28106912,141.7,141.67,108.04964886]
[1750960732756,10.28106912,141.7,141.67,18.64964886]
[1750960733127,10.28106912,141.68,141.66,29.24]
[1750960734056,10.28106912,141.67,141.66,29.24]
[1750960734442,10.28106912,141.68,141.66,29.24]
[1750960736842,10.28106912,141.68,141.65,18.64964886]
[1750960737442,10.28106912,141.69,141.65,18.64964886]
[1750960740377,6.84615053,141.69,141.64,13.16235053]
[1750960740661,6.84615053,141.69,141.64,6.84615053]
[1750960740846,11.18761765,141.73,141.64,6.84615053]
[1750960741050,7.05616709,141.72,141.64,6.84615053]
[1750960741256,7.05616709,141.72,141.65,6.84615053]
[1750960743351,7.05616709,141.72,141.65,18.64964886]
[1750960743551,12.22128474,141.72,141.65,18.64964886]
[1750960743852,6.84615053,141.68,141.63,29.88606509]
[1750960744174,6.84615053,141.68,141.64,18.64964886]
[1750960745061,7.05794341,141.69,141.64,25.49579939]
[1750960745062,6.84615053,141.69,141.64,25.49579939]
[1750960745438,6.84615053,141.68,141.64,18.64964886]
[1750960746166,7.05734248,141.7,141.64,18.64964886]
[1750960746366,6.84615053,141.68,141.64,18.64964886]
[1750960747771,6.84615053,141.69,141.64,25.49579939]
[1750960747974,6.84615053,141.68,141.64,18.64964886]
[1750960748858,6.84615053,141.68,141.64,108.04964886]
[1750960749453,6.84615053,141.67,141.64,108.04964886]
[1750960749742,6.84615053,141.67,141.64,89.4]
[1750960749743,6.84615053,141.66,141.64,89.4]
[1750960749978,6.84615053,141.65,141.64,89.4]
[1750960750162,6.84615053,141.66,141.64,89.4]
[1750960751457,6.84615053,141.67,141.64,89.4]
[1750960752351,6.84615053,141.66,141.64,89.4]
[1750960752754,6.84615053,141.65,141.61,89.4]
[1750960752976,6.84615053,141.64,141.61,89.4]
[1750960753179,6.84615053,141.65,141.61,89.4]
[1750960753673,6.84615053,141.66,141.62,6.84615053]
[1750960754374,6.84615053,141.68,141.63,6.84615053]
[1750960754553,6.84615053,141.69,141.64,25.49579939]
[1750960754758,6.84615053,141.7,141.65,6.84615053]
[1750960755072,6.84615053,141.7,141.65,96.24615053]
[1750960755580,6.0225,141.73,141.67,6.84615053]
[1750960755791,6.0225,141.73,141.69,6.84615053]
[1750960755792,6.84615053,141.73,141.69,6.84615053]
[1750960755984,13.90091031,141.75,141.7,6.84615053]
[1750960756286,6.84615053,141.75,141.7,6.84615053]
[1750960757472,6.84615053,141.75,141.71,25.49579939]
[1750960758266,6.84615053,141.76,141.72,6.84615053]
[1750960758571,6.84615053,141.77,141.73,18.64964886]
[1750960758781,6.84615053,141.76,141.73,18.64964886]
[1750960758963,6.84615053,141.75,141.72,29.16]
[1750960759893,6.84615053,141.74,141.7,42.38615053]
[1750960761985,6.84615053,141.73,141.7,35.54]
[1750960763562,6.84615053,141.73,141.7,6.38]
[1750960766677,6.84615053,141.73,141.7,95.78]
[1750960768957,7.05522166,141.74,141.7,95.78]
[1750960769158,6.84615053,141.73,141.7,95.78]
[1750960769466,5.24417375,141.76,141.7,95.78]
[1750960769666,6.84615053,141.74,141.7,131.74615053]
[1750960770474,12.09032428,141.77,141.72,6.84615053]
[1750960770678,12.09032428,141.77,141.73,25.49579939]
[1750960770995,12.09032428,141.78,141.73,114.89579939]
[1750960771184,6.84615053,141.77,141.73,114.89579939]
[1750960771873,8.65189097,141.79,141.74,6.84615053]
[1750960772071,6.84615053,141.78,141.74,6.84615053]
[1750960772589,6.84615053,141.78,141.73,114.89579939]
[1750960772794,7.05289097,141.79,141.73,114.89579939]
[1750960773087,6.84615053,141.78,141.73,114.89579939]
[1750960774091,7.05289097,141.79,141.73,114.89579939]
[1750960774296,6.84615053,141.77,141.73,114.89579939]
[1750960775092,7.05289097,141.79,141.73,114.89579939]
[1750960775299,6.84615053,141.77,141.73,114.89579939]
[1750960776378,7.05291956,141.79,141.73,114.89579939]
[1750960776699,6.84615053,141.77,141.73,114.89579939]
[1750960776998,6.84615053,141.78,141.74,6.84615053]
[1750960777251,6.84615053,141.78,141.74,35.94615053]
[1750960781411,6.84615053,141.78,141.74,125.34615053]
[1750960782706,6.84615053,141.75,141.72,89.4]
[1750960782911,6.84615053,141.74,141.72,89.4]
[1750960786317,7.05444021,141.76,141.72,89.4]
[1750960786612,6.84615053,141.74,141.72,89.4]
[1750960787218,6.84615053,141.75,141.72,89.4]
[1750960792111,6.84615053,141.74,141.72,89.4]
[1750960793711,7.05367849,141.77,141.72,89.4]
[1750960794011,6.84615053,141.75,141.72,89.4]
[1750960794412,6.84615053,141.74,141.72,89.4]
[1750960795313,6.84615053,141.73,141.72,89.4]
[1750960795514,6.84615053,141.73,141.7,95.78]
[1750960795821,6.84615053,141.71,141.69,89.4]
[1750960796121,6.84615053,141.7,141.67,95.4469]
[1750960796699,6.84615053,141.71,141.67,102.29305053]
[1750960798027,6.84615053,141.72,141.68,18.64964886]
[1750960798322,12.09032428,141.74,141.7,18.64964886]
[1750960798510,6.84615053,141.73,141.7,108.04964886]
[1750960799326,12.09032428,141.73,141.7,108.04964886]
[1750960799529,6.84615053,141.73,141.7,108.04964886]
[1750960799746,12.09032428,141.73,141.7,108.04964886]
[1750960799929,6.84615053,141.73,141.7,108.04964886]
[1750960800230,5.24417375,141.73,141.7,108.04964886]
[1750960800434,5.24417375,141.76,141.72,18.64964886]
[1750960800728,6.84615053,141.77,141.72,18.64964886]
[1750960800729,12.09032428,141.75,141.72,18.64964886]
[1750960800902,6.84615053,141.74,141.71,29.04]
[1750960801096,6.84615053,141.74,141.7,126.91235053]
[1750960801517,5.24417375,141.75,141.7,126.91235053]
[1750960801729,5.24417375,141.75,141.71,18.64964886]
[1750960801933,6.84615053,141.75,141.71,25.49579939]
[1750960802248,5.24417375,141.75,141.73,6.84615053]
[1750960802436,5.24417375,141.76,141.73,96.24615053]
[1750960802738,5.24417375,141.75,141.73,96.24615053]
[1750960802944,5.24417375,141.76,141.73,89.4]
[1750960803104,5.24417375,141.75,141.73,89.4]
[1750960803306,5.24417375,141.76,141.73,89.4]
[1750960803558,5.24417375,141.75,141.73,89.4]
[1750960804946,12.09032428,141.75,141.73,89.4]
[1750960805151,12.09032428,141.74,141.73,89.4]
[1750960805332,6.84615053,141.74,141.73,89.4]
[1750960805521,12.09032428,141.74,141.73,89.4]
[1750960806219,7.05566923,141.73,141.69,108.04964886]
[1750960806420,6.84615053,141.71,141.69,108.04964886]
[1750960806646,6.84615053,141.71,141.69,89.4]
[1750960809461,6.84615053,141.7,141.67,89.4]
[1750960809641,6.84615053,141.68,141.67,89.4]
[1750960809964,6.84615053,141.7,141.67,89.4]
[1750960810662,6.84615053,141.69,141.67,89.4]
[1750960811946,5.24417375,141.71,141.67,89.4]
[1750960812278,6.84615053,141.7,141.67,89.4]
[1750960813074,6.84615053,141.68,141.66,118.44]
[1750960813226,6.84615053,141.67,141.66,89.4]
[1750960815458,6.84615053,141.68,141.66,89.4]
[1750960815960,6.84615053,141.67,141.66,89.4]
[1750960816531,6.84615053,141.67,141.65,6.36]
[1750960817941,7.05808315,141.69,141.65,6.36]
[1750960818142,6.84615053,141.67,141.65,6.36]
[1750960819081,7.05808315,141.69,141.65,6.36]
[1750960819380,6.84615053,141.67,141.65,6.36]
[1750960819874,6.84615053,141.7,141.66,25.49579939]
[1750960820074,12.30049639,141.72,141.66,25.49579939]
[1750960820075,6.84615053,141.69,141.66,18.64964886]
[1750960820388,6.84615053,141.69,141.66,108.04964886]
[1750960820948,6.84615053,141.7,141.66,108.04964886]
[1750960821475,6.84615053,141.7,141.66,114.89579939]
[1750960823371,6.84615053,141.69,141.66,89.4]
[1750960823562,7.05680322,141.71,141.66,89.4]
[1750960823563,6.84615053,141.67,141.66,89.4]
[1750960825066,6.84615053,141.68,141.66,89.4]
[1750960825891,6.84615053,141.68,141.65,95.76]
[1750960826078,6.84615053,141.69,141.65,102.60615053]
[1750960826274,6.84615053,141.71,141.67,6.84615053]
[1750960827161,6.84615053,141.7,141.66,54.49579939]
[1750960827362,6.84615053,141.7,141.66,143.89579939]
[1750960829579,6.84615053,141.69,141.66,118.4]
[1750960829810,6.84615053,141.67,141.66,89.4]
[1750960830285,6.84615053,141.68,141.66,89.4]
[1750960831188,7.05676485,141.71,141.66,89.4]
[1750960831189,6.84615053,141.67,141.66,89.4]
[1750960831355,6.84615053,141.67,141.65,6.36]
[1750960831556,6.84615053,141.66,141.65,6.36]
[1750960831756,6.84615053,141.66,141.64,89.4]
[1750960832461,6.84615053,141.65,141.6,35.28]
[1750960832667,12.09032428,141.68,141.6,124.68]
[1750960832668,6.84615053,141.63,141.6,124.68]
[1750960832874,6.84615053,141.63,141.6,124.7]
[1750960833476,6.84615053,141.63,141.6,95.7]
[1750960833782,29.94947479,141.67,141.6,95.7]
[1750960834081,6.84615053,141.63,141.6,95.7]
[1750960834475,7.05865744,141.67,141.6,95.7]
[1750960834677,6.84615053,141.63,141.6,95.7]
[1750960835258,7.05865744,141.67,141.6,95.7]
[1750960835460,6.84615053,141.63,141.6,95.7]
[1750960836488,6.84615053,141.64,141.6,95.7]
[1750960837677,6.84615053,141.64,141.6,6.3]
[1750960838894,6.84615053,141.61,141.6,0.02]
[1750960839200,6.84615053,141.62,141.6,0.02]
[1750960840088,6.84615053,141.63,141.6,0.02]
[1750960841184,7.05988731,141.65,141.6,0.02]
[1750960841185,6.84615053,141.65,141.6,96.26615053]
[1750960842079,6.84615053,141.64,141.6,96.26615053]
[1750960842279,6.84615053,141.63,141.6,89.42]
[1750960842708,6.84615053,141.62,141.6,89.42]
[1750960842871,6.84615053,141.62,141.6,0.02]
[1750960843082,6.84615053,141.61,141.6,0.02]
[1750960844875,13.90779871,141.61,141.6,0.02]
[1750960845710,6.84615053,141.61,141.6,0.02]
[1750960846006,13.90779871,141.61,141.6,0.02]
[1750960846389,7.20281256,141.63,141.6,0.02]
[1750960846578,6.84615053,141.61,141.6,0.02]
[1750960847210,3.47611241,141.62,141.6,0.02]
[1750960847406,6.84615053,141.61,141.6,0.02]
[1750960847989,24.71227847,141.63,141.6,0.02]
[1750960848189,6.84615053,141.61,141.6,0.02]
[1750960848615,13.90779871,141.61,141.6,0.02]
[1750960856799,6.84615053,141.61,141.6,0.02]
[1750960856997,6.84615053,141.62,141.6,0.02]
[1750960857215,6.84615053,141.61,141.6,0.02]
[1750960859305,13.90779871,141.61,141.6,0.02]
[1750960862923,7.06143371,141.62,141.6,0.02]
[1750960863123,6.84615053,141.61,141.6,0.02]
[1750960864228,13.90779871,141.61,141.6,0.02]
[1750960864813,14.04996028,141.61,141.6,0.02]
[1750960865025,20.89611081,141.61,141.6,0.02]
[1750960867227,20.89611081,141.61,141.58,0.02]
[1750960867228,20.42091043,141.6,141.58,0.02]
[1750960867440,7.06364342,141.57,141.55,0.02]
[1750960867604,6.84615053,141.56,141.55,0.02]
[1750960867930,5.21026024,141.58,141.55,0.02]
[1750960868230,6.84615053,141.56,141.55,0.02]
[1750960869503,13.91029294,141.56,141.55,0.02]
[1750960870313,6.84615053,141.56,141.55,0.02]
[1750960872224,13.91029294,141.56,141.55,0.02]
[1750960874033,7.06314451,141.58,141.55,0.02]
[1750960874232,6.84615053,141.56,141.55,0.02]
[1750960876133,13.91029294,141.56,141.55,0.02]
[1750960877322,6.84615053,141.56,141.55,0.02]
[1750960879324,13.91029294,141.56,141.55,0.02]
[1750960879539,14.05245451,141.56,141.55,0.02]
[1750960879714,0.14216157,141.55,141.53,0.02]
[1750960880037,6.9883121,141.55,141.53,0.02]
[1750960881336,6.9883121,141.55,141.51,1.5233682]
[1750960881337,49.54875295,141.55,141.51,1.5233682]
[1750960881632,13.69230106,141.52,141.51,1.5233682]
[1750960881838,6.84615053,141.52,141.51,1.5233682]
[1750960883444,13.91228959,141.52,141.51,1.5233682]
[1750960886653,24.64083526,141.55,141.51,1.5233682]
[1750960886654,5.20997002,141.55,141.51,1.5233682]
[1750960886834,12.27328656,141.58,141.53,6.84615053]
[1750960887035,6.84615053,141.57,141.53,6.84615053]
[1750960887224,6.84615053,141.56,141.51,8.36951873]
[1750960887424,13.91015747,141.57,141.52,6.84615053]
[1750960887743,6.55521718,141.61,141.54,6.84615053]
[1750960887923,7.06214689,141.6,141.56,6.84615053]
[1750960888122,13.90787559,141.61,141.57,6.84615053]
[1750960888344,6.84615053,141.61,141.57,6.84615053]
[1750960889147,7.06143364,141.62,141.58,6.84615053]
[1750960889526,13.90758417,141.62,141.58,6.84615053]
[1750960889874,6.84615053,141.61,141.57,6.84615053]
[1750960890349,7.06143364,141.62,141.56,1.502]
[1750960890350,6.84615053,141.58,141.56,1.502]
[1750960891438,7.06364342,141.57,141.56,1.502]
[1750960894358,7.06364342,141.57,141.53,29.14]
[1750960894359,13.90979395,141.57,141.53,1.5664]
[1750960894562,6.84615053,141.55,141.53,1.5664]
[1750960894860,6.84615053,141.56,141.53,1.5664]
[1750960895062,13.90979395,141.57,141.53,1.5664]
[1750960895244,13.90979395,141.57,141.53,8.41255053]
[1750960895553,7.06264566,141.59,141.54,6.84615053]
[1750960895739,13.90879619,141.59,141.55,6.84615053]
[1750960896450,7.06264566,141.59,141.55,6.84615053]
[1750960896752,13.90879619,141.59,141.55,6.84615053]
[1750960897139,7.06229942,141.6,141.56,6.84615053]
[1750960897342,7.06229942,141.6,141.57,6.84615053]
[1750960898338,6.84615053,141.61,141.57,6.84615053]
[1750960898540,0.04,141.63,141.6,6.84615053]
[1750960898845,0.04,141.63,141.61,6.84615053]
[1750960899161,0.04,141.63,141.62,6.84615053]
[1750960900030,0.04,141.63,141.61,8.40315053]
[1750960900642,0.04,141.63,141.62,6.84615053]
[1750960908245,0.04,141.63,141.62,26.20191434]
[1750960908468,0.04,141.63,141.62,115.60191434]
[1750960909345,0.04,141.63,141.62,89.4]
[1750960909663,0.04,141.63,141.62,114.89579939]
[1750960910358,0.04,141.63,141.62,108.04964886]
[1750960910562,0.04,141.63,141.62,114.89579939]
[1750960911663,0.04,141.63,141.62,115.03796096]
[1750960912654,0.04,141.63,141.62,108.19181043]
[1750960912865,0.04,141.63,141.62,115.03796096]
[1750960913772,0.04,141.63,141.62,144.21796096]
[1750960915879,0.04,141.63,141.62,144.07579939]
[1750960916379,0.04,141.63,141.62,137.22964886]
[1750960916567,0.04,141.63,141.62,144.78191434]
[1750960916766,0.04,141.63,141.62,144.07579939]
[1750960917967,7.05772768,141.69,141.63,18.64964886]
[1750960918166,7.05734345,141.7,141.66,6.84615053]
[1750960918380,5.20747671,141.72,141.67,6.84615053]
[1750960918578,6.84615053,141.72,141.68,6.84615053]
[1750960918967,6.84615053,141.71,141.67,6.84615053]
[1750960919180,13.90305016,141.71,141.67,6.84615053]
[1750960919576,0.04,141.69,141.65,18.64964886]
[1750960919759,0.04,141.69,141.66,6.84615053]
[1750960920479,0.04,141.69,141.67,6.84615053]
[1750960923593,0.04,141.69,141.68,6.84615053]
[1750960924974,0.04,141.69,141.68,114.89579939]
[1750960927100,0.04,141.69,141.68,115.03796096]
[1750960927289,0.04,141.69,141.68,122.58992741]
[1750960928596,0.04,141.69,141.68,115.74377688]
[1750960929779,0.04,141.69,141.68,122.58992741]
[1750960930006,0.04,141.69,141.68,129.64808664]
[1750960930695,13.89959279,141.78,141.68,129.64808664]
[1750960931001,8.58562002,141.8,141.75,6.84615053]
[1750960931186,15.43177055,141.8,141.75,6.84615053]
[1750960931389,18.34382854,141.81,141.76,6.84615053]
[1750960931592,13.89805682,141.81,141.76,6.84615053]
[1750960932017,6.84615053,141.8,141.76,6.84615053]
[1750960932318,6.84615053,141.8,141.75,96.24615053]
[1750960932483,6.84615053,141.8,141.76,6.84615053]
[1750960933399,7.05190629,141.81,141.76,6.84615053]
[1750960933705,6.84615053,141.8,141.76,6.84615053]
[1750960935695,6.84615053,141.8,141.75,96.24615053]
[1750960935891,12.04657278,141.81,141.76,6.84615053]
[1750960936095,6.84615053,141.79,141.75,96.24615053]
[1750960938019,7.05284318,141.79,141.75,89.4]
[1750960938311,13.89899371,141.79,141.75,89.4]
[1750960939615,7.05284318,141.79,141.75,96.24615053]
[1750960940587,6.84615053,141.76,141.75,89.4]
[1750960940813,6.84615053,141.76,141.72,89.4]
[1750960941018,6.84615053,141.78,141.73,6.84615053]
[1750960941317,13.89899371,141.79,141.74,6.84615053]
[1750960941485,6.84615053,141.78,141.74,6.84615053]
[1750960942784,6.84615053,141.77,141.72,89.4]
[1750960943027,6.84615053,141.74,141.71,89.4]
[1750960943195,6.84615053,141.74,141.69,104.19025053]
[1750960943515,6.84615053,141.74,141.7,6.84615053]
[1750960944718,6.84615053,141.73,141.69,104.19025053]
[1750960949315,1.6081,141.77,141.69,104.19025053]
[1750960949520,6.84615053,141.74,141.69,104.19025053]
[1750960949905,6.84615053,141.73,141.69,104.19025053]
[1750960950231,6.84615053,141.73,141.69,95.76]
[1750960952828,6.84615053,141.73,141.69,102.60615053]
[1750960953430,8.66190153,141.77,141.7,25.49579939]
[1750960953722,6.84615053,141.75,141.71,6.84615053]
[1750960956107,1.6081,141.77,141.71,6.84615053]
[1750960956328,6.84615053,141.76,141.72,6.84615053]
[1750960956533,6.84615053,141.76,141.72,96.24615053]
[1750960958734,6.84615053,141.77,141.73,6.84615053]
[1750960959037,6.84615053,141.77,141.73,96.24615053]
[1750960962122,6.84615053,141.75,141.73,89.4]
[1750960962328,6.84615053,141.75,141.72,89.4]
[1750960963028,5.20042225,141.77,141.72,89.4]
[1750960963233,6.84615053,141.76,141.72,96.24615053]
[1750960964213,6.84615053,141.77,141.72,96.24615053]
[1750960964439,6.84615053,141.77,141.73,18.64964886]
[1750960964440,12.04657278,141.77,141.73,18.64964886]
[1750960964720,6.84615053,141.77,141.73,25.49579939]
[1750960964965,12.04657278,141.77,141.73,25.49579939]
[1750960965246,12.57381718,141.79,141.72,89.4]
[1750960965247,6.84615053,141.76,141.72,89.4]
[1750960965947,6.84615053,141.73,141.72,89.4]
[1750960966426,6.84615053,141.74,141.72,89.4]
[1750960967346,12.04657278,141.75,141.72,89.4]
[1750960967737,5.20042225,141.75,141.71,125.28615053]
[1750960968033,12.04657278,141.75,141.71,125.28615053]
[1750960970137,5.20042225,141.75,141.72,25.49579939]
[1750960970450,12.04657278,141.77,141.73,6.84615053]
[1750960970629,5.20042225,141.76,141.73,35.88615053]
[1750960973750,5.20042225,141.76,141.73,125.28615053]
[1750960974460,5.20042225,141.76,141.73,118.44]
[1750960975047,6.84615053,141.77,141.73,118.44]
[1750960975257,5.20042225,141.76,141.73,118.44]
[1750960975640,12.04657278,141.76,141.73,89.4]
[1750960975959,6.84615053,141.76,141.73,89.4]
[1750960976175,6.84615053,141.75,141.73,89.4]
[1750960976352,6.84615053,141.74,141.73,89.4]
[1750960977068,12.04657278,141.74,141.73,89.4]
[1750960977244,6.84615053,141.74,141.73,89.4]
[1750960977437,12.04657278,141.74,141.73,89.4]
[1750960977639,6.84615053,141.74,141.73,89.4]
[1750960977856,12.04657278,141.74,141.73,89.4]
[1750960978066,6.84615053,141.74,141.73,89.4]
[1750960978268,12.04657278,141.74,141.73,89.4]
[1750960978462,5.20042225,141.75,141.73,89.4]
[1750960978669,12.04657278,141.76,141.73,89.4]
[1750960978855,5.20042225,141.75,141.73,89.4]
[1750960979257,5.20042225,141.76,141.73,89.4]
[1750960979470,5.20042225,141.75,141.73,89.4]
[1750960979646,5.20042225,141.75,141.71,35.88615053]
[1750960980667,6.84615053,141.74,141.71,29.04]
[1750960980984,12.04657278,141.73,141.69,143.44964886]
[1750960981185,5.20042225,141.72,141.69,143.44964886]
[1750960981564,5.20042225,141.72,141.69,124.8]
[1750960983087,5.20042225,141.71,141.68,89.4]
[1750960983380,5.20042225,141.71,141.64,155.0601]
[1750960983381,6.84615053,141.69,141.66,29.04]
[1750960984882,5.20042225,141.71,141.68,6.84615053]
[1750960985073,12.04657278,141.73,141.69,54.53579939]
[1750960985249,5.20042225,141.72,141.69,143.93579939]
[1750960986153,5.20042225,141.72,141.69,137.08964886]
[1750960987054,5.20042225,141.72,141.69,143.93579939]
[1750960989271,12.04657278,141.73,141.69,143.93579939]
[1750960989473,5.20042225,141.73,141.7,6.84615053]